bitfinex/quotes_SOLUSD_20250514
["timestamp","ask_amount","ask_price","bid_price","bid_amount"]
[1747208093906,13.77106973,181.54,181.46,7.788]
[1747208094103,13.77106973,181.54,181.51,13.45574387]
[1747208094407,27.2268136,181.54,181.49,13.45574387]
[1747208095799,13.77106973,181.54,181.5,13.45574387]
[1747208096107,40.99484939,181.56,181.5,13.45574387]
[1747208096585,13.45574387,181.55,181.5,13.45574387]
[1747208096778,19.27525057,181.58,181.54,13.45574387]
[1747208096986,19.27525057,181.58,181.56,13.45574387]
[1747208097202,19.27525057,181.58,181.54,13.45574387]
[1747208097379,19.27525057,181.58,181.53,13.45574387]
[1747208098008,19.27525057,181.58,181.54,13.45574387]
[1747208098694,19.27525057,181.58,181.55,13.45574387]
[1747208100309,13.76803612,181.58,181.54,13.45574387]
[1747208100610,13.45574387,181.57,181.55,1.0]
[1747208100899,13.76803612,181.58,181.55,1.0]
[1747208101080,5.50691117,181.59,181.57,13.45574387]
[1747208101279,5.50691117,181.59,181.58,13.45574387]
[1747208101676,5.50569839,181.63,181.58,13.45574387]
[1747208101895,5.50569839,181.63,181.61,13.45574387]
[1747208102297,13.76374418,181.64,181.61,13.45574387]
[1747208102724,13.76374418,181.64,181.62,13.45574387]
[1747208103403,5.50509221,181.65,181.63,13.45574387]
[1747208103604,5.50509221,181.65,181.64,13.45574387]
[1747208104332,13.76273052,181.65,181.56,20.7998]
[1747208104531,13.45574387,181.63,181.56,1.6598]
[1747208104703,27.50279753,181.65,181.6,13.45574387]
[1747208106328,32.7235666,181.65,181.6,13.45574387]
[1747208106514,19.26782273,181.65,181.61,13.45574387]
[1747208106922,19.26782273,181.65,181.64,13.45574387]
[1747208107813,60.24902765,181.65,181.58,13.45574387]
[1747208108133,13.45574387,181.63,181.58,13.45574387]
[1747208108426,32.59574387,181.67,181.62,13.45574387]
[1747208108930,19.14,181.67,181.63,13.45574387]
[1747208109944,19.14,181.67,181.58,26.0]
[1747208110144,19.14,181.67,181.63,13.45574387]
[1747208110547,5.50478916,181.66,181.63,13.45574387]
[1747208111048,5.50478916,181.66,181.65,13.45574387]
[1747208111250,19.26676207,181.66,181.63,13.45574387]
[1747208112442,19.26676207,181.66,181.62,13.45574387]
[1747208112742,19.26676207,181.66,181.64,13.45574387]
[1747208112937,5.50478916,181.66,181.65,13.45574387]
[1747208114021,13.7602119,181.69,181.65,13.45574387]
[1747208114220,13.7602119,181.69,181.67,13.45574387]
[1747208114531,5.50327444,181.71,181.68,13.45574387]
[1747208114724,5.50327444,181.71,181.69,13.45574387]
[1747208115918,5.50327444,181.71,181.65,1.5619]
[1747208115919,19.26146056,181.71,181.65,1.5619]
[1747208116143,13.75818612,181.71,181.69,13.45574387]
[1747208116756,13.75818612,181.71,181.7,13.45574387]
[1747208117966,5.50266879,181.73,181.7,13.45574387]
[1747208118171,13.75637975,181.74,181.71,13.45574387]
[1747208119679,13.75637975,181.74,181.72,13.45574387]
[1747208120458,5.50206327,181.75,181.73,13.45574387]
[1747208120638,5.50206327,181.75,181.7,26.0]
[1747208120639,5.50206327,181.75,181.74,13.45574387]
[1747208121280,5.50206327,181.75,181.74,8.38904791]
[1747208121655,19.25192518,181.8,181.74,8.38904791]
[1747208121867,19.25192518,181.8,181.76,8.38904791]
[1747208122551,8.38904791,181.77,181.67,19.12]
[1747208122768,8.38904791,181.79,181.74,8.38904791]
[1747208123163,55.14372336,181.8,181.75,8.38904791]
[1747208123474,46.75467545,181.8,181.76,13.42584078]
[1747208123679,13.75137513,181.8,181.71,13.42584078]
[1747208123973,27.17721591,181.8,181.75,13.42584078]
[1747208124270,13.75137513,181.8,181.77,13.42584078]
[1747208125466,13.75137513,181.8,181.78,13.42584078]
[1747208127183,13.75137513,181.8,181.77,13.42584078]
[1747208127383,13.75137513,181.8,181.79,13.42584078]
[1747208127570,13.74959545,181.83,181.79,13.42584078]
[1747208127887,13.74959545,181.83,181.81,13.42584078]
[1747208128053,13.74959545,181.83,181.82,13.42584078]
[1747208128259,13.74959545,181.83,181.8,13.42584078]
[1747208129067,13.42584078,181.82,181.77,13.42584078]
[1747208129266,13.42584078,181.81,181.76,13.42584078]
[1747208129679,19.25192518,181.8,181.76,13.42584078]
[1747208130182,19.25192518,181.8,181.78,13.42584078]
[1747208130377,19.25192518,181.8,181.79,13.42584078]
[1747208132188,19.24874882,181.83,181.79,13.42584078]
[1747208133896,19.24874882,181.83,181.74,1.6154]
[1747208133897,13.42584078,181.8,181.74,1.6154]
[1747208134073,13.42584078,181.77,181.7,1.5048]
[1747208134272,32.68200274,181.76,181.71,13.42584078]
[1747208134782,46.76496477,181.76,181.72,13.42584078]
[1747208135164,46.76496477,181.76,181.73,13.42584078]
[1747208135367,46.76496477,181.76,181.7,1.5048]
[1747208135566,60.19080555,181.76,181.67,26.0]
[1747208135795,60.19080555,181.76,181.7,13.42584078]
[1747208136991,13.42584078,181.74,181.66,26.0]
[1747208137191,13.42584078,181.73,181.68,13.42584078]
[1747208137563,13.42584078,181.74,181.69,13.42584078]
[1747208137760,74.27376758,181.76,181.71,13.42584078]
[1747208137996,87.69960836,181.76,181.71,13.42584078]
[1747208139193,87.69960836,181.76,181.65,7.9774]
[1747208139194,74.27376758,181.76,181.72,13.42584078]
[1747208139375,74.27376758,181.76,181.73,13.42584078]
[1747208139893,74.27376758,181.76,181.67,26.0]
[1747208139894,87.69960836,181.76,181.71,13.42584078]
[1747208140108,13.42584078,181.75,181.7,13.42584078]
[1747208140273,87.69960836,181.76,181.71,13.42584078]
[1747208140985,87.69960836,181.76,181.67,26.0]
[1747208141171,74.27376758,181.76,181.72,13.42584078]
[1747208141367,19.25616196,181.76,181.75,13.42584078]
[1747208141572,19.25616196,181.76,181.74,13.42584078]
[1747208141776,19.25616196,181.76,181.73,13.42584078]
[1747208141980,19.25616196,181.76,181.72,13.42584078]
[1747208142390,19.25616196,181.76,181.73,13.42584078]
[1747208143514,13.7544014,181.76,181.73,13.42584078]
[1747208143797,13.7544014,181.76,181.75,13.42584078]
[1747208144803,13.7544014,181.76,181.74,13.42584078]
[1747208145298,13.7544014,181.76,181.74,8.39188899]
[1747208148313,22.14629039,181.76,181.71,8.39188899]
[1747208148503,22.14629039,181.76,181.65,8.5774]
[1747208148702,22.14629039,181.76,181.72,8.39188899]
[1747208148703,13.7544014,181.76,181.72,8.39188899]
[1747208148897,22.14629039,181.76,181.68,26.0]
[1747208149097,8.39188899,181.74,181.65,7.9774]
[1747208149300,8.39188899,181.73,181.68,8.39188899]
[1747208150291,19.26040061,181.72,181.68,8.39188899]
[1747208151528,19.26040061,181.72,181.69,8.39188899]
[1747208152320,19.26040061,181.72,181.65,7.9774]
[1747208152528,13.75742901,181.72,181.69,8.39188899]
[1747208153931,13.75742901,181.72,181.68,8.39188899]
[1747208154236,13.75742901,181.72,181.65,7.9774]
[1747208154401,8.39188899,181.69,181.6,7.7734]
[1747208154631,8.39188899,181.69,181.64,8.39188899]
[1747208155444,8.39188899,181.71,181.66,8.39188899]
[1747208155651,19.26040061,181.72,181.67,8.39188899]
[1747208155652,27.6522896,181.72,181.67,8.39188899]
[1747208155872,19.26040061,181.72,181.67,8.39188899]
[1747208156078,19.26040061,181.72,181.68,8.39188899]
[1747208156556,8.39188899,181.7,181.59,0.14216157]
[1747208156766,8.39188899,181.68,181.63,8.39188899]
[1747208157327,8.39188899,181.69,181.63,8.39188899]
[1747208157543,8.39188899,181.7,181.65,8.39188899]
[1747208157961,8.39188899,181.7,181.6,26.0]
[1747208158174,8.39188899,181.69,181.6,26.0]
[1747208158329,8.39188899,181.69,181.63,8.39188899]
[1747208158865,0.28432314,181.71,181.63,8.39188899]
[1747208159047,8.39188899,181.69,181.64,8.39188899]
[1747208159372,8.39188899,181.7,181.65,8.39188899]
[1747208159566,55.16714762,181.72,181.67,8.39188899]
[1747208160139,55.16714762,181.72,181.66,8.39188899]
[1747208160862,55.16714762,181.72,181.62,8.39188899]
[1747208161086,8.39188899,181.68,181.57,0.14216157]
[1747208161387,8.39188899,181.66,181.61,8.39188899]
[1747208161540,8.39188899,181.66,181.59,26.0]
[1747208161745,8.39188899,181.66,181.6,8.39188899]
[1747208162655,19.26782273,181.65,181.6,8.39188899]
[1747208163066,19.26782273,181.65,181.61,8.39188899]
[1747208163285,19.26782273,181.65,181.59,26.0]
[1747208163583,19.26782273,181.65,181.6,8.39188899]
[1747208163761,19.26782273,181.65,181.61,8.39188899]
[1747208164086,19.26782273,181.65,181.59,26.0]
[1747208164281,19.26782273,181.65,181.61,8.39188899]
[1747208164650,13.76273052,181.65,181.63,8.39188899]
[1747208164959,5.50478916,181.66,181.64,8.39188899]
[1747208165161,5.50478916,181.66,181.65,8.39188899]
[1747208166248,5.50478916,181.66,181.64,8.39188899]
[1747208166675,13.76197291,181.66,181.63,8.39188899]
[1747208167751,13.76197291,181.66,181.64,8.39188899]
[1747208168049,13.76197291,181.66,181.63,8.39188899]
[1747208168250,13.76197291,181.66,181.62,8.39188899]
[1747208168464,8.39188899,181.65,181.6,8.39188899]
[1747208168876,19.26888349,181.64,181.6,8.39188899]
[1747208169269,19.26888349,181.64,181.62,8.39188899]
[1747208169583,5.50357732,181.7,181.63,8.39188899]
[1747208169775,5.50357732,181.7,181.69,8.39188899]
[1747208170158,19.26293579,181.7,181.68,8.39188899]
[1747208170360,19.26293579,181.7,181.66,8.39188899]
[1747208171084,8.39188899,181.68,181.6,1.6226]
[1747208171262,18.64964886,181.69,181.6,13.44656746]
[1747208171470,13.44656746,181.65,181.6,13.44656746]
[1747208172282,19.06,181.66,181.62,13.44656746]
[1747208173078,5.50509221,181.65,181.63,13.44656746]
[1747208173282,5.50509221,181.65,181.58,26.0]
[1747208173490,32.71439019,181.65,181.6,13.44656746]
[1747208173994,19.26782273,181.65,181.62,13.44656746]
[1747208174161,5.50509221,181.65,181.63,13.44656746]
[1747208174589,5.50509221,181.65,181.62,13.44656746]
[1747208175881,19.26782273,181.65,181.61,13.44656746]
[1747208177485,19.26782273,181.65,181.58,13.44656746]
[1747208177486,13.44656746,181.64,181.58,13.44656746]
[1747208177691,13.44656746,181.63,181.58,13.44656746]
[1747208177889,13.44656746,181.62,181.57,13.44656746]
[1747208178196,13.44656746,181.61,181.56,13.44656746]
[1747208179201,0.14216157,181.64,181.55,1.0]
[1747208179202,5.50660792,181.6,181.58,13.44656746]
[1747208179394,5.50660792,181.6,181.59,13.44656746]
[1747208180903,5.50660792,181.6,181.55,1.0]
[1747208181196,5.50660792,181.6,181.59,13.44656746]
[1747208181608,19.2702827,181.63,181.59,13.44656746]
[1747208182900,13.44656746,181.61,181.55,14.44656746]
[1747208183111,13.44656746,181.6,181.55,14.44656746]
[1747208183268,13.44656746,181.61,181.56,13.44656746]
[1747208183687,19.27312774,181.6,181.56,13.44656746]
[1747208183896,13.44656746,181.57,181.55,1.0]
[1747208184190,19.27312774,181.6,181.55,1.0]
[1747208184191,13.44656746,181.56,181.55,1.0]
[1747208185695,32.38053946,181.56,181.55,1.0]
[1747208185901,37.88836056,181.56,181.55,1.0]
[1747208186097,65.39096056,181.56,181.55,1.0]
[1747208192872,44.64964886,181.52,181.37,7.6831]
[1747208193078,13.44656746,181.43,181.37,7.6831]
[1747208193275,8.42574827,181.43,181.38,8.42574827]
[1747208193475,8.42574827,181.42,181.37,1.5159]
[1747208193673,8.42574827,181.4,181.37,1.5159]
[1747208193901,8.42574827,181.38,181.32,14.54274827]
[1747208194083,8.42574827,181.41,181.36,8.42574827]
[1747208194284,8.42574827,181.41,181.32,32.117]
[1747208194285,8.42574827,181.4,181.35,8.42574827]
[1747208194906,13.78020462,181.42,181.38,8.42574827]
[1747208195291,13.78020462,181.42,181.38,13.47966874]
[1747208195683,5.51207143,181.42,181.39,13.47966874]
[1747208195897,5.51207143,181.42,181.35,39.47966874]
[1747208196084,5.51207143,181.42,181.4,13.47966874]
[1747208196395,32.77191876,181.42,181.37,13.47966874]
[1747208197289,19.29225002,181.42,181.37,13.47966874]
[1747208197498,19.29225002,181.42,181.38,13.47966874]
[1747208198386,5.51207143,181.42,181.38,13.47966874]
[1747208199305,18.64964886,181.38,181.19,1.6616]
[1747208199481,13.47966874,181.23,181.19,1.6616]
[1747208199686,13.47966874,181.22,181.16,13.47966874]
[1747208199917,13.47966874,181.21,181.15,13.47966874]
[1747208200086,26.0,181.24,181.14,7.8678]
[1747208200087,13.47966874,181.2,181.14,21.34746874]
[1747208200284,13.47966874,181.19,181.14,1.6616]
[1747208200898,5.51967765,181.17,181.14,1.6616]
[1747208201099,5.51967765,181.17,181.12,13.47966874]
[1747208201312,5.51967765,181.17,181.13,13.47966874]
[1747208201313,19.31887177,181.17,181.13,13.47966874]
[1747208201522,5.51967765,181.17,181.14,13.47966874]
[1747208201805,5.51967765,181.17,181.16,13.47966874]
[1747208201981,5.51967765,181.17,181.15,13.47966874]
[1747208202186,5.51967765,181.17,181.14,13.47966874]
[1747208203093,32.79545588,181.2,181.14,13.47966874]
[1747208203590,13.47966874,181.19,181.14,13.47966874]
[1747208204713,13.47966874,181.19,181.11,26.0]
[1747208205010,5.51876379,181.2,181.18,13.47966874]
[1747208205393,5.51876379,181.2,181.19,13.47966874]
[1747208205596,5.51876379,181.2,181.18,13.47966874]
[1747208205912,19.31567328,181.2,181.16,13.47966874]
[1747208206692,19.31567328,181.2,181.14,26.0]
[1747208206903,19.31567328,181.2,181.17,13.47966874]
[1747208206904,5.51876379,181.2,181.17,13.47966874]
[1747208207099,5.51815472,181.22,181.17,13.47966874]
[1747208207805,5.51815472,181.22,181.18,13.47966874]
[1747208208689,5.51815472,181.22,181.2,13.47966874]
[1747208209112,13.79455743,181.24,181.2,13.47966874]
[1747208209819,5.51724137,181.25,181.21,13.47966874]
[1747208210002,5.51724137,181.25,181.22,13.47966874]
[1747208210321,5.51724137,181.25,181.21,13.47966874]
[1747208211529,18.99660573,181.26,181.21,13.47966874]
[1747208211727,32.78894822,181.26,181.21,13.47966874]
[1747208212599,13.47966874,181.24,181.16,1.639]
[1747208212900,13.47966874,181.2,181.16,1.639]
[1747208213507,19.3162352,181.2,181.16,1.639]
[1747208213721,19.3162352,181.2,181.16,15.11866874]
[1747208213923,19.3162352,181.2,181.17,13.47966874]
[1747208215709,13.79747141,181.2,181.18,13.47966874]
[1747208217438,5.51815472,181.22,181.16,1.639]
[1747208217439,5.51815472,181.22,181.2,26.0]
[1747208217820,5.51815472,181.22,181.21,13.47966874]
[1747208218607,5.51815472,181.22,181.19,20.07296874]
[1747208218936,46.51206827,181.31,181.21,13.47966874]
[1747208218937,19.3050193,181.3,181.21,13.47966874]
[1747208219231,19.3050193,181.3,181.27,13.47966874]
[1747208220002,19.3050193,181.3,181.26,13.47966874]
[1747208220538,19.3050193,181.3,181.21,19.1]
[1747208220704,19.3050193,181.3,181.27,13.47966874]
[1747208220901,5.5157198,181.3,181.28,13.47966874]
[1747208221322,19.30201009,181.33,181.28,13.47966874]
[1747208221518,19.30201009,181.33,181.23,18.79181043]
[1747208221729,32.78167883,181.33,181.28,13.47966874]
[1747208222828,32.78167883,181.33,181.27,13.47966874]
[1747208223518,19.30201009,181.33,181.29,13.47966874]
[1747208224136,19.30201009,181.33,181.3,13.47966874]
[1747208224342,19.30201009,181.33,181.32,13.47966874]
[1747208224526,13.47966874,181.37,181.32,13.47966874]
[1747208224527,5.513591,181.37,181.32,13.47966874]
[1747208224744,0.5026,181.44,181.32,13.47966874]
[1747208224745,13.47966874,181.39,181.32,0.14216157]
[1747208224913,13.47966874,181.38,181.31,1.5342]
[1747208225111,13.47966874,181.38,181.33,13.47966874]
[1747208225411,13.47966874,181.36,181.31,1.5342]
[1747208225611,13.47966874,181.36,181.31,15.01386874]
[1747208226953,13.47966874,181.33,181.27,27.631]
[1747208227123,13.47966874,181.35,181.3,13.47966874]
[1747208227511,5.51450314,181.34,181.3,13.47966874]
[1747208228313,13.47966874,181.33,181.27,27.631]
[1747208228514,13.47966874,181.32,181.27,15.11066874]
[1747208229327,13.47966874,181.33,181.28,13.47966874]
[1747208229645,5.5151114,181.32,181.28,13.47966874]
[1747208229830,5.5151114,181.32,181.27,1.631]
[1747208230031,13.47966874,181.29,181.24,19.08]
[1747208230331,13.47966874,181.28,181.23,15.13086874]
[1747208231144,13.47966874,181.28,181.23,1.6512]
[1747208231347,91.81241893,181.32,181.24,13.47966874]
[1747208231348,13.47966874,181.29,181.24,13.47966874]
[1747208231515,5.51602404,181.29,181.25,13.47966874]
[1747208232023,13.47966874,181.34,181.28,13.47966874]
[1747208232223,5.51450314,181.34,181.31,13.47966874]
[1747208232627,5.51298307,181.39,181.33,13.47966874]
[1747208232919,5.51207143,181.42,181.38,13.47966874]
[1747208233127,5.51207143,181.42,181.4,13.47966874]
[1747208233308,5.51207143,181.42,181.41,13.47966874]
[1747208233507,18.99052512,181.46,181.4,13.47966874]
[1747208233810,27.25810889,181.45,181.37,26.0]
[1747208234016,13.47966874,181.42,181.37,13.47966874]
[1747208235342,13.47966874,181.41,181.36,13.47966874]
[1747208235538,60.76158181,181.46,181.34,7.5568]
[1747208235539,19.29544075,181.39,181.34,1.5316]
[1747208235756,32.77510949,181.39,181.34,15.01126874]
[1747208236255,13.47966874,181.38,181.33,13.47966874]
[1747208236618,13.47966874,181.38,181.3,26.0]
[1747208236619,13.47966874,181.37,181.32,13.47966874]
[1747208236834,13.47966874,181.36,181.29,8.0623]
[1747208237145,13.47966874,181.38,181.33,13.47966874]
[1747208237449,13.47966874,181.38,181.29,1.6379]
[1747208237450,13.47966874,181.37,181.32,13.47966874]
[1747208237658,19.29863254,181.36,181.32,13.47966874]
[1747208237857,19.29863254,181.36,181.33,13.47966874]
[1747208238353,19.29863254,181.36,181.32,13.47966874]
[1747208238920,32.77830128,181.36,181.29,1.6379]
[1747208239124,13.47966874,181.34,181.29,15.11756874]
[1747208239539,19.29863254,181.36,181.32,13.47966874]
[1747208239858,13.78473753,181.36,181.34,13.47966874]
[1747208240035,13.78473753,181.36,181.29,1.6379]
[1747208240036,13.78473753,181.36,181.33,13.47966874]
[1747208240544,13.78473753,181.36,181.34,13.47966874]
[1747208240741,13.78473753,181.36,181.32,13.47966874]
[1747208240923,27.26440627,181.36,181.3,13.47966874]
[1747208241743,32.77830128,181.36,181.3,13.47966874]
[1747208242123,13.47966874,181.35,181.29,1.6379]
[1747208242441,13.47966874,181.35,181.28,13.47966874]
[1747208242442,13.47966874,181.33,181.28,13.47966874]
[1747208242617,13.47966874,181.32,181.25,8.1773]
[1747208242823,13.47966874,181.32,181.25,1.6439]
[1747208243019,13.47966874,181.32,181.27,13.47966874]
[1747208243255,32.55966874,181.33,181.27,13.47966874]
[1747208243448,19.08,181.33,181.29,13.47966874]
[1747208243650,19.29863254,181.36,181.27,18.64964886]
[1747208243947,32.77830128,181.36,181.31,13.47966874]
[1747208244257,5.51389501,181.36,181.35,13.47966874]
[1747208245034,26.28432314,181.42,181.35,15.02356874]
[1747208245035,13.78054985,181.42,181.35,15.02356874]
[1747208245264,13.78054985,181.42,181.39,13.47966874]
[1747208245825,19.29262128,181.42,181.39,13.47966874]
[1747208246327,19.29262128,181.42,181.38,13.47966874]
[1747208246656,19.29262128,181.42,181.35,15.02356874]
[1747208246657,13.47966874,181.4,181.35,15.02356874]
[1747208246861,13.47966874,181.4,181.34,13.47966874]
[1747208247522,0.14216157,181.41,181.34,13.47966874]
[1747208247729,13.47966874,181.39,181.34,13.47966874]
[1747208247923,19.29650457,181.38,181.34,13.47966874]
[1747208248145,32.77617331,181.38,181.33,13.47966874]
[1747208249363,0.28432314,181.37,181.33,13.47966874]
[1747208249946,5.51389501,181.36,181.33,13.47966874]
[1747208250560,19.29863254,181.36,181.32,13.47966874]
[1747208250851,0.28432314,181.33,181.27,26.0]
[1747208251044,13.76399188,181.32,181.26,1.5078]
[1747208251244,13.76399188,181.32,181.27,13.47966874]
[1747208251868,13.47966874,181.3,181.25,13.47966874]
[1747208252054,19.30608416,181.29,181.25,13.47966874]
[1747208253742,13.79006012,181.29,181.25,13.47966874]
[1747208253944,13.79006012,181.29,181.24,13.47966874]
[1747208254245,0.28432314,181.28,181.24,13.47966874]
[1747208255546,5.51663264,181.27,181.24,13.47966874]
[1747208255746,19.30821425,181.27,181.23,13.47966874]
[1747208255951,32.78788299,181.27,181.22,13.47966874]
[1747208256272,32.78788299,181.27,181.17,1.5372]
[1747208256273,0.28432314,181.22,181.17,1.5372]
[1747208256582,13.76399188,181.22,181.17,15.01686874]
[1747208256950,13.76399188,181.22,181.17,13.47966874]
[1747208257375,0.28432314,181.22,181.18,13.47966874]
[1747208257587,13.76399188,181.22,181.17,13.47966874]
[1747208257755,19.31460735,181.21,181.17,13.47966874]
[1747208258960,19.31460735,181.21,181.12,7.5505]
[1747208259163,19.31460735,181.21,181.17,13.47966874]
[1747208259956,5.51845924,181.21,181.19,13.47966874]
[1747208260154,5.51845924,181.21,181.2,13.47966874]
[1747208262183,19.31165012,181.24,181.2,13.47966874]
[1747208262884,19.31165012,181.24,181.21,13.47966874]
[1747208263685,5.51754579,181.24,181.23,13.47966874]
[1747208264362,13.79173606,181.27,181.23,13.47966874]
[1747208264562,13.79173606,181.27,181.17,13.47966874]
[1747208264563,13.79173606,181.27,181.24,13.47966874]
[1747208267123,13.79173606,181.27,181.22,13.47966874]
[1747208267124,0.28432314,181.26,181.22,13.47966874]
[1747208268162,0.28432314,181.26,181.18,26.0]
[1747208268163,5.51724137,181.25,181.24,13.47966874]
[1747208270462,0.28432314,181.26,181.23,13.47966874]
[1747208271883,0.28432314,181.26,181.21,13.47966874]
[1747208272179,0.28432314,181.26,181.22,13.47966874]
[1747208272368,5.51724137,181.25,181.22,13.47966874]
[1747208272684,19.31034481,181.25,181.23,13.47966874]
[1747208273893,5.51724137,181.25,181.24,13.47966874]
[1747208274462,19.30748152,181.28,181.24,13.47966874]
[1747208274663,19.30748152,181.28,181.19,26.0]
[1747208274664,19.30748152,181.28,181.25,13.47966874]
[1747208275468,5.51632833,181.28,181.26,13.47966874]
[1747208277164,19.30608416,181.29,181.21,6.2557]
[1747208277470,19.30608416,181.29,181.26,13.47966874]
[1747208278390,19.30608416,181.29,181.27,13.47966874]
[1747208278994,13.79006012,181.29,181.27,13.47966874]
[1747208279909,5.5157198,181.3,181.28,13.47966874]
[1747208280210,5.51450314,181.34,181.29,13.47966874]
[1747208280369,32.78042973,181.34,181.26,1.6486]
[1747208280701,32.78042973,181.34,181.29,13.47966874]
[1747208280869,5.5151114,181.32,181.26,15.12826874]
[1747208281076,5.51389501,181.36,181.31,13.47966874]
[1747208281268,5.51389501,181.36,181.26,15.12826874]
[1747208281269,5.51389501,181.36,181.35,13.47966874]
[1747208281468,5.51389501,181.36,181.3,6.4546]
[1747208281676,32.77830128,181.36,181.31,13.47966874]
[1747208281887,0.14216157,181.33,181.29,13.47966874]
[1747208282266,13.62183031,181.33,181.28,13.47966874]
[1747208282581,19.22216157,181.35,181.31,13.47966874]
[1747208282787,0.14216157,181.34,181.31,13.47966874]
[1747208282988,5.51480725,181.33,181.32,13.47966874]
[1747208283391,5.51480725,181.33,181.31,13.47966874]
[1747208283904,0.28432314,181.32,181.29,13.47966874]
[1747208284075,13.76399188,181.32,181.27,13.47966874]
[1747208284272,0.28432314,181.3,181.26,13.47966874]
[1747208284572,0.28432314,181.3,181.22,1.5085]
[1747208284800,0.14216157,181.28,181.24,13.47966874]
[1747208284985,5.51663264,181.27,181.23,13.47966874]
[1747208285187,5.51663264,181.27,181.24,13.47966874]
[1747208285394,5.51663264,181.27,181.26,13.47966874]
[1747208285704,5.5157198,181.3,181.26,13.47966874]
[1747208285927,5.5157198,181.3,181.29,13.47966874]
[1747208286902,5.5151114,181.32,181.29,13.47966874]
[1747208287112,19.30288991,181.32,181.3,13.47966874]
[1747208287515,19.30288991,181.32,181.29,13.47966874]
[1747208287837,0.28432314,181.29,181.25,13.47966874]
[1747208288337,0.28432314,181.27,181.22,1.5085]
[1747208288537,0.28432314,181.27,181.23,13.47966874]
[1747208288833,0.28432314,181.27,181.24,13.47966874]
[1747208289128,5.51693699,181.26,181.24,13.47966874]
[1747208290633,19.30927948,181.26,181.23,13.47966874]
[1747208290795,19.30927948,181.26,181.24,13.47966874]
[1747208290996,19.30927948,181.26,181.25,13.47966874]
[1747208290997,5.51693699,181.26,181.25,13.47966874]
[1747208291633,5.51602404,181.29,181.25,13.47966874]
[1747208291901,5.51602404,181.29,181.27,13.47966874]
[1747208292632,13.79004357,181.3,181.27,13.47966874]
[1747208293844,5.51541558,181.31,181.29,13.47966874]
[1747208294210,5.51541558,181.31,181.3,13.47966874]
[1747208294457,19.30234511,181.33,181.3,13.47966874]
[1747208294628,5.51480725,181.33,181.32,13.47966874]
[1747208296754,5.51480725,181.33,181.23,19.24964886]
[1747208296755,18.64964886,181.32,181.23,1.5709]
[1747208296926,0.28432314,181.29,181.25,13.47966874]
[1747208298262,0.28432314,181.29,181.24,13.47966874]
[1747208298620,0.28432314,181.29,181.25,13.47966874]
[1747208298855,19.30714915,181.28,181.23,1.5709]
[1747208299025,19.30714915,181.28,181.25,13.47966874]
[1747208300051,19.30714915,181.28,181.23,1.5709]
[1747208300052,19.30714915,181.28,181.23,13.47966874]
[1747208301242,32.78681789,181.28,181.23,13.47966874]
[1747208301451,13.47966874,181.25,181.2,13.47966874]
[1747208301651,13.47966874,181.26,181.2,13.47966874]
[1747208301945,0.14216157,181.22,181.18,13.47966874]
[1747208302246,19.31460735,181.21,181.17,13.47966874]
[1747208303145,0.28432314,181.2,181.13,1.5127]
[1747208303348,13.76399188,181.2,181.15,13.47966874]
[1747208303848,18.79181043,181.15,181.06,13.47966874]
[1747208304034,13.47966874,181.1,181.05,13.47966874]
[1747208304233,13.47966874,181.1,181.03,1.5346]
[1747208304547,13.47966874,181.1,181.04,13.47966874]
[1747208305356,13.47966874,181.1,180.99,1.5717]
[1747208305357,13.62183031,181.08,180.99,1.5717]
[1747208305559,13.62183031,181.08,181.02,13.47966874]
[1747208305560,0.14216157,181.07,181.02,13.47966874]
[1747208305852,0.28432314,181.1,181.06,13.47966874]
[1747208306053,19.32740625,181.09,181.04,13.47966874]
[1747208306550,5.52211607,181.09,181.08,13.47966874]
[1747208306758,5.52211607,181.09,181.03,26.0]
[1747208307049,5.52211607,181.09,181.06,13.47966874]
[1747208307556,5.52211607,181.09,181.07,13.47966874]
[1747208307730,5.52211607,181.09,181.08,13.47966874]
[1747208308052,13.80317577,181.12,181.08,13.47966874]
[1747208308243,13.80317577,181.12,181.01,4.41941951]
[1747208308244,13.80317577,181.12,181.09,13.47966874]
[1747208308625,13.80317577,181.12,181.08,13.47966874]
[1747208308847,13.80317577,181.12,181.02,26.0]
[1747208309157,5.52089659,181.13,181.11,13.47966874]
[1747208309361,5.52089659,181.13,181.12,13.47966874]
[1747208309865,5.52028705,181.15,181.12,13.47966874]
[1747208310228,5.52028705,181.15,181.13,13.47966874]
[1747208310433,5.52028705,181.15,181.14,13.47966874]
[1747208310828,5.52028705,181.15,181.12,13.47966874]
[1747208311551,19.32100468,181.15,181.11,13.47966874]
[1747208313259,19.24972269,181.15,181.11,13.47966874]
[1747208313629,19.24972269,181.15,181.12,13.47966874]
[1747208313831,19.24972269,181.15,181.11,13.47966874]
[1747208314246,19.24972269,181.15,181.08,1.642]
[1747208314247,19.24972269,181.15,181.13,13.47966874]
[1747208314450,37.02690434,181.16,181.14,13.47966874]
[1747208314658,5.51938191,181.18,181.15,13.47966874]
[1747208314857,5.51876379,181.2,181.17,26.95933748]